bitfinex-derivatives/quotes_ETHF0:USTF0_20260120
["timestamp","ask_amount","ask_price","bid_price","bid_amount"]
[1768936640923,0.00366379,3000.9,2999.8,0.14419517]
[1768936641124,0.00366379,3000.9,3000.0,1.16857297]
[1768936643828,0.00366379,3000.9,2999.8,0.14419517]
[1768936647926,0.00366379,3000.9,2999.5,1.16857297]
[1768936647927,0.00366379,3000.9,3000.2,1.16857297]
[1768936648333,0.16675,3001.6,3000.2,1.16857297]
[1768936648529,1.30561918,3001.8,3000.2,1.31276814]
[1768936648833,0.22442649,3002.0,3000.5,1.31276814]
[1768936649028,0.13704621,3002.1,3000.5,1.31276814]
[1768936649225,0.13974492,3002.1,3000.5,1.31276814]
[1768936649426,0.13974492,3002.1,3000.6,0.14419517]
[1768936650336,0.00269871,3002.1,3000.6,0.14419517]
[1768936650736,0.00269871,3002.1,3000.6,1.31276814]
[1768936650930,0.00269871,3002.1,3000.7,0.14419517]
[1768936655637,0.13704621,3002.0,3000.5,0.16681]
[1768936655832,0.00269871,3002.1,3000.6,0.14419517]
[1768936656332,0.00269871,3002.1,3000.6,1.31276814]
[1768936656526,0.00269871,3002.1,3000.7,0.14419517]
[1768936660731,1.30831789,3002.1,3000.7,0.14419517]
[1768936662238,0.13974492,3002.1,3000.7,0.14419517]
[1768936662541,0.00269871,3002.1,3000.9,0.14419517]
[1768936663438,1.17127168,3002.1,3000.5,1.16857297]
[1768936663739,1.30831789,3002.1,3000.5,0.14419517]
[1768936663939,0.14139815,3002.0,3000.5,0.14419517]
[1768936665337,1.17127168,3002.1,3000.5,0.14419517]
[1768936665536,0.00269871,3002.1,3000.5,0.14419517]
[1768936665936,0.00269871,3002.1,3000.9,0.14569972]
[1768936667037,0.1413432,3002.1,3000.5,0.16681]
[1768936667539,0.1413432,3002.1,3000.5,0.31250972]
[1768936669336,0.1413432,3002.1,3000.6,0.14569972]
[1768936669542,0.00269871,3002.1,3000.6,0.14569972]
[1768936670439,0.00269871,3002.1,3000.8,0.14569972]
[1768936670943,1.17000441,3002.1,3001.0,1.1673057]
[1768936672447,1.17000441,3002.1,3001.0,1.31300542]
[1768936673148,1.3339957,3002.7,3001.5,1.1673057]
[1768936673345,1.1673057,3002.5,3001.5,1.1673057]
[1768936673546,0.16669,3002.7,3001.3,1.1673057]
[1768936673747,1.1673057,3002.4,3001.3,1.1673057]
[1768936674145,1.17100536,3002.4,3001.3,1.1673057]
[1768936674344,1.1673057,3002.2,3001.1,1.1673057]
[1768936675148,1.17100536,3002.4,3001.3,1.1673057]
[1768936676848,1.1673057,3002.2,3001.1,1.1673057]
[1768936679152,1.1673057,3001.9,3000.8,1.1673057]
[1768936679853,1.1673057,3001.7,3000.6,1.1673057]
[1768936680058,1.1673057,3001.9,3000.8,1.1673057]
[1768936681953,1.1673057,3001.5,3000.4,1.3341157]
[1768936682158,1.1673057,3001.5,3000.4,1.1673057]
[1768936682851,1.1673057,3001.7,3000.6,1.1673057]
[1768936683050,1.1673057,3001.5,3000.4,1.1673057]
[1768936683846,1.30595019,3001.5,3000.4,1.1673057]
[1768936684052,1.30595019,3001.5,3000.1,0.16683]
[1768936684053,1.1673057,3001.3,3000.2,1.1673057]
[1768936684749,1.1673057,3000.4,2999.6,2.98675298]
[1768936685054,1.1673057,3000.6,2999.5,1.1673057]
[1768936685957,1.1673057,3000.8,2999.7,1.1673057]
[1768936686258,1.1673057,3001.0,2999.9,1.1673057]
[1768936686757,0.16677,3001.2,2999.7,1.1673057]
[1768936686758,1.1673057,3000.8,2999.7,1.1673057]
[1768936686960,1.1673057,3000.6,2999.5,1.1673057]
[1768936687852,1.30595019,3001.4,3000.3,1.1673057]
[1768936688552,1.1673057,3001.2,3000.1,1.1673057]
[1768936688754,1.1673057,3001.6,3000.5,1.1673057]
[1768936689057,1.1673057,3001.4,3000.3,1.1673057]
[1768936690555,1.1673057,3001.2,3000.1,1.1673057]
[1768936691355,1.1673057,3001.0,2999.9,1.1673057]
[1768936692362,1.1673057,3001.2,3000.1,1.1673057]
[1768936693061,1.30595019,3001.4,3000.1,1.1673057]
[1768936693248,1.1673057,3001.2,3000.1,1.1673057]
[1768936698754,1.1673057,3000.8,2999.7,1.1673057]
[1768936699062,1.1673057,3000.6,2999.4,0.1467342]
[1768936699368,1.1673057,3000.6,2999.4,0.00356078]
[1768936699857,1.1673057,3000.6,2999.5,1.1673057]
[1768936700455,1.1673057,3000.6,2999.4,0.00356078]
[1768936700456,1.1673057,3000.4,2999.4,0.00356078]
[1768936700656,1.1673057,3000.2,2999.4,0.00356078]
[1768936700858,1.17061632,3000.2,2999.4,0.00356078]
[1768936701757,1.1673057,3000.0,2999.4,0.00356078]
[1768936702965,0.1443386,3000.2,2999.4,0.00356078]
[1768936707761,0.1443386,3000.2,2998.2,0.16693]
[1768936707762,0.14102798,2999.8,2998.2,0.16693]
[1768936708763,0.14102798,2999.8,2998.2,0.16944474]
[1768936716375,0.14102798,2999.7,2998.2,0.16944474]
[1768936717070,0.30787798,2999.7,2998.2,0.00251474]
[1768936717373,0.14102798,2999.6,2998.2,0.00251474]
[1768936717773,0.14102798,2999.5,2998.2,0.00251474]
[1768936722678,0.14102798,2999.2,2998.2,0.00251474]
[1768936722880,1.17005064,2998.6,2998.2,0.00251474]
[1768936723181,1.17005064,2998.8,2997.7,1.17005064]
[1768936723978,1.17005064,2998.8,2997.7,1.17408914]
[1768936726082,1.17005064,2998.4,2997.7,0.0040385]
[1768936726288,1.17005064,2998.2,2997.7,0.0040385]
[1768936726581,1.17005064,2998.4,2997.2,1.17005064]
[1768936726786,1.17005064,2998.2,2997.2,1.17005064]
[1768936727392,1.17005064,2998.2,2997.1,1.17005064]
[1768936727582,1.17005064,2998.2,2997.1,1.17425542]
[1768936728391,1.31696614,2998.2,2997.1,1.17425542]
[1768936728887,1.17005064,2998.0,2997.1,0.00420478]
[1768936729088,1.17005064,2997.8,2997.1,0.00420478]
[1768936730793,1.17256437,2998.0,2997.1,0.00420478]
[1768936732885,0.00251373,2998.0,2997.1,0.00420478]
[1768936733084,0.00251373,2998.0,2997.1,1.1745866]
[1768936734994,0.00251373,2998.0,2997.1,0.00420478]
[1768936737186,0.1469155,2998.7,2997.2,0.16699]
[1768936738189,0.14947713,2998.7,2997.2,0.16699]
[1768936740989,0.14947713,2998.7,2997.1,0.00420478]
[1768936741895,0.31638713,2998.7,2997.1,0.00420478]
[1768936742197,0.1469155,2998.6,2997.1,0.00420478]
[1768936744197,0.3138355,2998.6,2997.1,0.00420478]
[1768936744399,0.1469155,2998.5,2997.1,0.00420478]
[1768936747505,0.1469155,2998.4,2997.1,0.00420478]
[1768936748206,0.3138455,2998.4,2997.1,0.00420478]
[1768936748404,0.3138455,2998.3,2997.1,0.00420478]
[1768936748601,0.1469155,2998.2,2997.1,0.00420478]
[1768936750515,0.1469155,2998.6,2997.1,0.17120478]
[1768936752312,0.1469155,2998.6,2997.1,3.15795776]
[1768936753119,0.00256163,2998.7,2997.1,3.15795776]
[1768936753120,0.00256163,2998.7,2997.2,0.30723584]
[1768936753313,0.00256163,2998.7,2997.3,2.98675298]
[1768936754819,0.14947713,2998.7,2997.3,2.98675298]
[1768936755623,0.14947713,2998.7,2997.4,2.98675298]
[1768936758422,0.00256163,2998.7,2997.6,0.16697]
[1768936762721,0.00256163,2998.7,2997.5,2.98675298]
[1768936762922,0.00256163,2998.7,2997.4,4.15669238]
[1768936763223,0.00256163,2998.7,2997.5,2.98675298]
[1768936765621,0.00256163,2998.7,2997.5,3.12601698]
[1768936765830,0.00256163,2998.7,2997.6,0.306234]
[1768936766130,0.00256163,2998.7,2997.6,3.29298698]
[1768936766622,0.00256163,2998.7,2997.7,1.1699394]
[1768936766819,0.00256163,2998.7,2997.6,3.29298698]
[1768936767023,0.00256163,2998.7,2997.6,0.306234]
[1768936767726,0.00256163,2998.7,2997.6,3.29298698]
[1768936768417,0.00256163,2998.7,2998.0,1.1699394]
[1768936768623,0.14337999,2999.6,2998.0,1.30972985]
[1768936769520,0.14590348,2999.6,2998.0,1.30972985]
[1768936769925,0.14590348,2999.6,2998.0,4.29648283]
[1768936770329,0.14590348,2999.6,2998.0,1.30972985]
[1768936770528,0.14590348,2999.6,2998.0,4.29648283]
[1768936772534,0.00252349,2999.6,2998.1,0.13816877]
[1768936772829,0.00252349,2999.6,2998.3,1.1699394]
[1768936774135,0.00252349,2999.6,2998.6,1.1699394]
[1768936774433,0.00252349,2999.6,2998.6,1.30710693]
[1768936777133,0.14590348,2999.6,2998.4,0.16693]
[1768936779141,0.00252349,2999.6,2998.4,0.30020344]
[1768936779433,0.00252349,2999.6,2998.5,1.30321284]
[1768936779735,0.00252349,2999.6,2998.6,0.13327344]
[1768936780125,0.14337999,3000.4,2998.8,1.1699394]
[1768936780332,0.87388837,3000.3,2998.8,1.1699394]
[1768936780627,0.14337999,3000.4,2998.8,1.1699394]
[1768936781133,0.14770483,3000.4,2998.8,1.1699394]
[1768936783442,1.31764423,3000.4,2998.8,1.1699394]
[1768936783642,0.14337999,3000.3,2998.8,1.1699394]
[1768936787742,0.14337999,3000.3,2998.8,1.30250662]
[1768936789147,0.14337999,3000.3,2998.8,1.1699394]
[1768936795049,1.3129487,2999.9,2998.7,1.33599501]
[1768936795245,1.3129487,2999.9,2998.9,1.16908501]
[1768936795854,1.16908501,2999.7,2998.7,1.16908501]
[1768936798244,1.3129487,2999.9,2998.7,1.16908501]
[1768936800648,1.16908501,2999.7,2998.7,1.16908501]
[1768936801446,1.16908501,2999.7,2998.7,4.15583799]
[1768936801643,1.16908501,2999.7,2998.7,1.16908501]
[1768936801844,1.3129487,2999.9,2998.7,1.16908501]
[1768936802043,0.14386369,2999.8,2998.7,1.16908501]
[1768936802250,0.14386369,2999.8,2998.7,4.15583799]
[1768936803456,1.3129487,2999.7,2998.7,4.15583799]
[1768936803854,1.16908501,2999.7,2998.7,2.98675298]
[1768936804448,1.16908501,2999.5,2998.7,2.98675298]
[1768936804755,1.3129487,2999.5,2998.6,2.98675298]
[1768936804954,1.3129487,2999.5,2998.5,1.16908501]
[1768936805854,0.14386369,2999.5,2998.5,1.16908501]
[1768936806349,1.16908501,2999.7,2998.5,1.16908501]
[1768936808463,1.16908501,2999.7,2998.7,1.16908501]
[1768936808650,1.3129487,2999.9,2998.9,1.16908501]
[1768936809062,1.3129487,2999.9,2998.7,1.16908501]
[1768936811358,1.3129487,2999.7,2998.5,4.32275799]
[1768936811563,1.3129487,2999.7,2998.5,1.33600501]
[1768936812558,1.3129487,2999.7,2998.5,4.32275799]
[1768936813666,0.14386369,2999.7,2998.7,1.16908501]
[1768936816371,1.3129487,2999.7,2998.5,1.16908501]
[1768936817374,1.3129487,2999.7,2998.7,1.16908501]
[1768936817571,0.14386369,2999.7,2998.7,1.16908501]
[1768936819071,1.16908501,2999.3,2998.4,2.98675298]
[1768936819271,1.16908501,2999.3,2998.2,4.88575298]
[1768936819272,0.14564325,2999.2,2998.2,4.88575298]
[1768936819574,1.31472826,2998.9,2997.9,2.98675298]
[1768936819770,1.31472826,2999.3,2998.2,1.16908501]
[1768936820178,0.14564325,2999.2,2998.2,1.16908501]
[1768936821973,0.14564325,2999.6,2998.6,1.16908501]
[1768936822172,1.31472826,3000.1,2999.0,1.16908501]
[1768936822475,0.87553632,3000.0,2999.0,1.16908501]
[1768936822674,1.31472826,3000.1,2999.0,1.16908501]
[1768936822876,0.87555973,3000.0,2999.0,1.16908501]
[1768936823077,1.16908501,2999.9,2999.0,1.16908501]
[1768936823679,1.16908501,2999.7,2998.6,1.16908501]
[1768936826079,0.14564325,2999.8,2998.8,1.16908501]
[1768936828483,0.14564325,2999.6,2998.6,1.16908501]
[1768936831378,0.14564325,2999.9,2999.0,1.16908501]
[1768936832279,0.14564325,3000.3,2999.4,1.16908501]
[1768936832477,0.14564325,3000.3,2999.4,1.17296396]
[1768936835486,1.16908501,3000.2,2999.4,0.00387895]
[1768936836687,0.14564325,3000.3,2999.4,1.17296396]
[1768936837392,0.00432484,3000.4,3000.0,1.16908501]
[1768936837598,0.14564325,3000.7,3000.0,1.16908501]
[1768936837794,0.14564325,3000.7,2999.8,1.16908501]
[1768936838097,1.31472826,3001.1,3000.0,1.16908501]
[1768936838798,1.31757191,3001.1,3000.0,1.16908501]
[1768936839588,1.16908501,3000.9,2999.8,1.16908501]
[1768936840597,1.31472826,3000.9,2999.8,1.16908501]
[1768936841097,1.16908501,3000.7,2999.6,1.16908501]
[1768936842705,1.16908501,3000.7,2999.4,0.17074895]
[1768936842892,1.16908501,3000.7,2999.7,1.16908501]
[1768936843698,0.14564325,3000.8,2999.7,1.16908501]
[1768936847104,1.16908501,3000.7,2999.7,1.16908501]
[1768936847301,0.14806485,3000.6,2999.5,1.16908501]
[1768936847603,1.16908501,3000.3,2999.4,0.00387895]
[1768936849003,1.31714986,3000.5,2999.4,0.00387895]
[1768936852310,1.31714986,3000.5,2999.5,1.16908501]
[1768936852609,0.14806485,3000.5,2999.5,1.16908501]
[1768936855008,0.14806485,3000.9,2999.7,1.16812763]
[1768936857114,0.00284365,3001.1,2999.7,1.16812763]
[1768936857518,0.1509085,3001.1,2999.6,0.16686]
[1768936860419,0.1509085,3001.1,2999.6,3.15361298]
[1768936860920,0.1509085,3001.1,2999.6,0.16686]
[1768936861420,0.1509085,3001.1,2999.6,3.15361298]
[1768936861921,0.1509085,3001.1,2999.8,1.16812763]
[1768936862123,0.1509085,3001.1,2999.6,2.98675298]
[1768936862124,0.14806485,3000.6,2999.6,2.98675298]
[1768936862320,0.14806485,3000.6,2999.4,0.00387895]
[1768936864426,0.14806485,3000.3,2999.4,0.00387895]
[1768936867832,0.14806485,3000.0,2998.4,9.07578361]
[1768936868029,0.14806485,3000.0,2998.4,6.05388061]
[1768936868427,0.14806485,3000.0,2998.4,3.06712763]
[1768936868623,0.14806485,3000.0,2998.4,3.07134721]
[1768936869228,0.14806485,3000.0,2998.4,1.17234721]
[1768936870340,0.14806485,3000.0,2998.7,1.16812763]
[1768936870537,0.14806485,3000.7,2999.0,1.16812763]
[1768936870735,1.02215254,3000.6,2999.3,1.16812763]
[1768936870935,0.87408769,3000.5,2999.3,1.16812763]
[1768936871236,1.02215254,3000.5,2999.3,1.16812763]
[1768936871430,0.14806485,3000.5,2999.0,1.16812763]
[1768936872834,0.14806485,3000.9,2999.6,1.16812763]
[1768936873528,0.14806485,3000.6,2999.0,1.16812763]
[1768936873733,0.14806485,3000.6,2998.8,1.9]
[1768936873930,0.14806485,3000.6,2999.0,1.16812763]
[1768936879339,0.13543282,3000.4,2998.8,1.9]
[1768936879744,0.13543282,3000.4,2998.9,1.16812763]
[1768936883041,0.13543282,3000.4,2998.9,1.30333478]
[1768936883848,0.1668,3000.7,2999.0,0.13520495]
[1768936884046,0.1668,3000.7,2999.2,1.16812763]
[1768936884250,0.1668,3000.7,2999.2,1.30343064]
[1768936884650,0.13543282,3000.8,2999.2,1.30343064]
[1768936885347,0.16962365,3001.1,2999.0,3.15364298]
[1768936885348,0.16962365,3001.1,2999.5,1.16812763]
[1768936885754,0.30505647,3001.1,2999.5,1.16812763]
[1768936887263,1.4731841,3001.1,2999.5,1.16812763]
[1768936890064,0.13543282,3001.0,2999.5,1.16812763]
[1768936890761,1.30356045,3000.5,2999.0,1.9]
[1768936890958,0.13543282,3000.5,2999.0,1.9]
[1768936893667,0.13543282,3000.2,2998.8,0.1669]
[1768936893963,0.13543282,3000.2,2998.7,1.901]
[1768936900375,1.30356045,3000.0,2998.7,1.901]
[1768936900574,0.13543282,2999.9,2998.7,4.88775298]
[1768936900770,0.13543282,2999.9,2998.7,1.901]
[1768936901571,1.30356045,2999.4,2998.4,0.00421958]
[1768936903671,0.13543282,2999.3,2998.4,0.00421958]
[1768936903870,0.13543282,2999.0,2998.4,0.00421958]
[1768936904063,0.13905571,2999.0,2997.9,1.902]
[1768936905071,0.13905571,2999.0,2997.9,1.90454863]
[1768936905576,0.13905571,2999.0,2997.9,0.00254863]
[1768936910679,0.00362289,2999.0,2997.9,0.00254863]
[1768936913085,0.00362289,2999.0,2998.1,1.16812763]
[1768936913285,0.14467854,2999.8,2998.1,1.30892817]
[1768936913487,0.14467854,2999.7,2998.1,1.30892817]
[1768936913686,0.14467854,2999.6,2998.1,1.30892817]
[1768936914288,1.31280617,2999.4,2998.0,0.16695]
[1768936915289,0.14467854,2999.3,2998.0,0.16695]
[1768936915491,0.14467854,2999.3,2997.9,0.00254863]
[1768936916991,1.16985332,2998.9,2997.9,0.00254863]
[1768936918293,0.14467854,2999.0,2998.0,1.16985332]
[1768936918591,1.16985332,2999.3,2998.2,1.16985332]
[1768936919101,1.16985332,2999.1,2998.0,1.16985332]
[1768936920888,0.14467854,2999.3,2998.4,1.16985332]
[1768936921090,1.16985332,2999.5,2998.4,1.16985332]
[1768936921285,1.16985332,2999.3,2998.2,1.16985332]
[1768936926394,1.16985332,2998.9,2997.9,0.00254863]
[1768936927186,1.31453186,2999.1,2997.9,0.00254863]
[1768936927386,1.31453186,2999.1,2998.0,1.16985332]
[1768936931003,1.16985332,2998.7,2997.9,0.00254863]
[1768936931700,1.31453186,2998.3,2997.9,0.00254863]
[1768936931905,1.31453186,2998.3,2997.5,2.98675298]
[1768936931906,1.16985332,2998.1,2997.4,2.98675298]
[1768936932101,1.16985332,2998.1,2997.2,4.19003063]
[1768936932102,1.16985332,2997.9,2997.2,4.19003063]
[1768936932307,1.31453186,2997.7,2996.7,2.98675298]
[1768936932503,1.31453186,2997.7,2996.6,1.16985332]
[1768936932703,1.31453186,2997.7,2996.5,8.22875298]
[1768936932704,1.16985332,2997.3,2996.5,5.242]
[1768936933006,1.17295581,2997.3,2996.5,5.24620294]
[1768936933200,1.17295581,2997.3,2996.5,1.90720294]
[1768936933798,0.00310249,2997.3,2996.5,1.90720294]
[1768936933999,0.00310249,2997.3,2996.6,1.16985332]
[1768936935007,0.00310249,2997.3,2996.5,0.00420294]
[1768936935912,0.13703108,2998.1,2996.5,1.94520229]
[1768936936213,0.16691,2998.7,2997.0,0.13547779]
[1768936936420,0.16691,2998.7,2997.0,2.03947779]
[1768936936905,0.3073296,2998.7,2997.0,2.03947779]
[1768936937108,0.13703108,2998.6,2997.0,1.904]
[1768936939708,0.13703108,2998.6,2997.1,0.13349719]
[1768936939914,0.00338852,2998.7,2997.3,1.8062245]
[1768936940708,0.00338852,2998.7,2997.4,0.29874123]
[1768936942114,0.00338852,2998.7,2997.4,0.16698]
[1768936943317,0.00338852,2998.7,2997.4,0.29718089]
[1768936943516,0.00338852,2998.7,2997.5,0.13020089]
[1768936946224,1.8062245,2999.6,2997.4,0.16698]
[1768936946225,0.13703108,2999.5,2997.8,0.1291532]
[1768936946423,0.13703108,2999.5,2997.9,0.16695]
[1768936946624,0.13703108,2999.5,2997.9,2.07095]
[1768936947226,0.14005431,2999.5,2997.9,2.07095]
[1768936948225,0.14005431,2999.5,2997.9,0.16695]
[1768936949917,0.14005431,2999.5,2997.6,1.904]
[1768936950118,0.14005431,2999.5,2997.4,5.01566297]
[1768936951229,0.13703108,2999.4,2997.4,5.01566297]
[1768936952128,0.13703108,2999.3,2997.4,5.18264297]
[1768936952530,0.13703108,2999.3,2997.5,2.98675298]
[1768936953227,0.13703108,2999.3,2997.5,3.15373298]
[1768936955927,0.13703108,2999.3,2997.6,0.16697]
[1768936956635,0.13703108,2999.3,2997.8,0.1244062]
[1768936957132,0.00302323,2999.5,2997.8,0.1244062]
[1768936957832,0.00302323,2999.5,2998.0,0.16695]
[1768936958031,0.00302323,2999.5,2998.0,0.29135529]
[1768936960027,0.14005431,2999.5,2998.0,0.16695]
[1768936961335,0.13703108,2999.4,2997.5,2.98675298]
[1768936961533,0.13703108,2999.3,2997.5,4.89175298]
[1768936961736,0.13703108,2999.3,2997.4,0.16698]
[1768936962332,0.13703108,2999.0,2997.1,4.89175298]
[1768936963832,0.13703108,2999.0,2997.1,5.01628743]
[1768936964021,0.13703108,2999.0,2997.4,1.93054332]
[1768936964228,0.14149919,2999.4,2997.5,0.12431882]
[1768936965434,1.02047382,2999.3,2997.5,0.12431882]
[1768936965634,0.14437083,2999.3,2997.5,0.12431882]
[1768936966932,0.14437083,2999.1,2997.4,4.95995748]
[1768936967229,0.14437083,2998.9,2997.3,2.98675298]
[1768936968128,0.14437083,2998.9,2997.4,2.98675298]
[1768936969636,1.8062245,2998.6,2997.4,2.98675298]
[1768936969937,0.14437083,2998.5,2997.0,2.98675298]
[1768936972337,0.14437083,2998.5,2996.9,2.98675298]
[1768936972536,0.14437083,2998.5,2996.8,2.98675298]
[1768936973336,0.14437083,2998.5,2996.7,3.15377298]
[1768936976341,0.14437083,2998.5,2996.7,0.16702]
[1768936976544,0.14437083,2998.5,2996.7,0.29056508]
[1768936977845,0.14437083,2998.4,2996.8,1.906]
[1768936978344,0.31130083,2998.4,2996.7,0.16702]
[1768936978646,0.14437083,2998.1,2996.5,4.89695592]
[1768936979350,0.14437083,2997.9,2996.5,2.99095592]
[1768936979547,0.14437083,2997.9,2996.5,0.00420294]
[1768936980147,0.31132083,2997.9,2996.5,0.00420294]
[1768936980449,0.14437083,2997.8,2996.5,0.00420294]
[1768936981435,0.31134083,2997.7,2996.5,0.00420294]
[1768936981636,0.31134083,2997.6,2996.5,0.00420294]
[1768936981939,0.14437083,2997.5,2996.5,0.00420294]
[1768936983654,0.31135083,2997.5,2996.5,0.00420294]
[1768936983847,0.14437083,2997.4,2996.5,0.00420294]
[1768936984153,0.14437083,2997.4,2995.8,1.906]
[1768936984551,0.14437083,2997.2,2995.8,1.906]
[1768936984953,0.14868049,2997.2,2995.8,1.91028042]
[1768936985453,0.14437083,2997.1,2995.8,1.91028042]
[1768936985857,0.31137083,2997.1,2995.8,0.00428042]
[1768936986158,0.167,2997.1,2995.8,0.00428042]
[1768936986350,0.00430966,2997.2,2995.8,0.13848879]
[1768936990761,0.14868049,2997.2,2995.8,0.00428042]
[1768936991261,0.14437083,2996.8,2995.8,0.00428042]
[1768936992051,0.31139083,2996.8,2995.8,0.00428042]
[1768936992251,0.14437083,2996.7,2995.8,0.00428042]
[1768936995564,0.00430966,2997.2,2995.8,0.00428042]
[1768936996656,0.15163446,2997.2,2995.8,0.00428042]
[1768936997867,0.00430966,2997.2,2995.8,0.13648178]
[1768936998062,0.00430966,2997.2,2996.0,0.13220136]
[1768936998961,0.15163446,2997.2,2995.8,0.00428042]
[1768936999167,0.1473248,2997.0,2995.8,0.00428042]
[1768937000067,0.00430966,2997.2,2995.8,0.00428042]
[1768937006168,0.00430966,2997.2,2995.8,0.17135042]
[1768937006365,0.00430966,2997.2,2995.8,0.29545982]
[1768937009268,0.00430966,2997.2,2996.0,0.16706]
[1768937009775,0.15163446,2997.2,2995.8,0.00428042]
[1768937019277,0.15163446,2997.2,2995.8,1.91228042]
[1768937022381,0.15163446,2997.2,2995.8,5.0661034]
[1768937022786,0.00430966,2997.2,2995.9,2.98675298]
[1768937022987,0.00430966,2997.2,2995.8,5.18913363]
[1768937023387,0.00430966,2997.2,2995.9,2.98675298]
[1768937024589,0.15043006,2997.2,2995.9,2.98675298]
[1768937024983,0.00430966,2997.2,2996.0,3.11161324]
[1768937025190,0.00430966,2997.2,2996.1,3.15380298]
[1768937025485,0.00430966,2997.2,2996.2,2.98675298]
[1768937026792,0.42033631,2998.1,2996.2,2.98675298]
[1768937026793,0.13984982,2998.1,2996.4,0.16704]
[1768937026992,0.13984982,2998.1,2996.6,2.98675298]
[1768937027386,0.13984982,2998.1,2996.5,4.89575298]
[1768937027684,0.14417912,2998.1,2996.5,4.89575298]
[1768937029791,0.14417912,2998.1,2996.5,2.98675298]
[1768937029993,0.13984982,2997.9,2996.4,2.98675298]
[1768937030290,0.13984982,2997.9,2996.3,4.89575298]
[1768937030683,0.13984982,2997.9,2996.3,2.98675298]
[1768937030884,0.13984982,2997.9,2996.2,4.89575298]
[1768937032582,0.13984982,2997.3,2995.8,2.9910334]
[1768937032786,0.13984982,2997.3,2995.8,0.00428042]
[1768937033387,0.13984982,2997.1,2995.8,0.00428042]
[1768937033588,0.13984982,2996.9,2995.8,0.00428042]
[1768937034492,0.13984982,2996.8,2995.8,0.00428042]
[1768937037587,0.13984982,2996.6,2994.8,2.98675298]
[1768937037795,0.13984982,2996.6,2994.7,2.98675298]
[1768937037992,0.13984982,2996.4,2994.5,4.89575298]
[1768937038795,0.13984982,2996.4,2994.5,4.89839942]
[1768937039997,9.40656727,2997.6,2994.5,4.89839942]
[1768937039998,0.13984982,2996.1,2994.5,2.98939942]
[1768937040187,0.13984982,2996.0,2994.5,0.00264644]
[1768937040392,0.13984982,2995.8,2994.5,0.00264644]
[1768937041901,0.13984982,2995.6,2994.5,0.00264644]
[1768937043996,0.13984982,2995.1,2993.5,2.98675298]
[1768937044209,0.13984982,2995.1,2993.2,4.35725063]
[1768937044407,0.13984982,2995.1,2993.3,1.909]
[1768937045002,0.13984982,2995.1,2993.3,1.9132311]
[1768937045400,0.13984982,2995.1,2993.4,0.12391939]
[1768937050916,0.13984982,2995.1,2993.4,0.29111939]
[1768937051218,0.13984982,2995.1,2993.5,0.1672]
[1768937055012,1.17293651,2994.9,2993.8,1.17293651]
[1768937055212,1.17293651,2994.9,2994.0,1.17293651]
[1768937055515,1.31278633,2995.1,2994.0,1.17293651]
[1768937056312,1.17293651,2994.7,2993.6,1.34012651]
[1768937056514,1.17293651,2995.1,2994.0,1.17293651]
[1768937056914,0.14048466,2995.2,2993.7,0.16719]
[1768937060917,0.14048466,2995.7,2993.9,0.16718]
[1768937061123,0.14048466,2995.7,2993.8,1.92773743]
[1768937062226,0.14048466,2995.7,2994.0,0.16717]
[1768937063617,0.14048466,2995.7,2994.1,0.16716]
[1768937065722,0.14048466,2995.7,2994.2,0.16716]
[1768937065919,0.14048466,2995.7,2994.4,0.16715]
[1768937066119,0.0030692,2996.0,2994.4,0.16715]
[1768937066522,0.0030692,2996.0,2994.5,0.16714]
[1768937067414,0.0030692,2996.0,2994.6,1.80953056]
[1768937068426,0.0030692,2996.0,2994.7,0.16713]
[1768937068826,0.0030692,2996.0,2994.6,4.79628354]
[1768937068827,0.0030692,2996.0,2995.0,1.80953056]
[1768937069029,0.14048466,2996.5,2995.0,1.80953056]
[1768937069030,0.14048466,2996.5,2995.0,1.97664056]
[1768937069232,0.14048466,2996.5,2995.0,4.96339354]
[1768937070131,0.1431024,2996.5,2995.0,4.96339354]
[1768937070522,0.00261774,2996.5,2995.4,1.80953056]
[1768937070721,0.00261774,2996.5,2995.4,1.81210938]
[1768937071319,0.00261774,2996.5,2995.4,3.88919938]
[1768937071724,0.14048466,2996.9,2995.4,3.88919938]
[1768937072829,0.1434343,2996.9,2995.4,3.88919938]
[1768937074434,0.00294964,2996.9,2995.5,0.27293079]
[1768937074732,0.00294964,2996.9,2995.8,1.97660056]
[1768937076637,0.1434343,2996.9,2995.4,0.00257882]
[1768937076935,1.31200265,2996.8,2995.7,1.17151799]
[1768937078434,0.14048466,2996.7,2995.8,1.17151799]
[1768937078933,0.14048466,2996.7,2995.5,1.91]
[1768937084342,0.14048466,2996.7,2995.5,2.07709]
[1768937084645,0.00294964,2996.9,2995.8,0.16707]
[1768937084936,0.00294964,2996.9,2995.9,0.16706]
[1768937085541,0.00294964,2996.9,2996.0,0.16706]
[1768937086243,0.00294964,2996.9,2996.2,0.16705]
[1768937086447,0.00294964,2996.9,2996.0,1.80732637]
[1768937086448,0.13468768,2997.9,2996.3,0.16704]
[1768937087648,0.13839591,2997.9,2996.3,0.16704]
[1768937091751,0.13839591,2997.9,2996.4,0.16704]
[1768937091963,0.13839591,2997.9,2996.5,1.80732637]
[1768937093058,0.13839591,2997.9,2996.4,0.16704]
[1768937094161,0.13839591,2997.9,2995.8,3.15382298]
[1768937094458,0.13839591,2997.9,2995.8,0.16707]
[1768937094651,0.13468768,2997.8,2995.8,0.16707]
[1768937094852,0.13468768,2997.8,2996.0,0.16706]
[1768937096359,0.13468768,2997.8,2996.1,1.80732637]
[1768937096961,0.13468768,2997.8,2996.1,1.97437637]
[1768937099155,0.13468768,2997.8,2996.1,5.0643884]
[1768937099460,0.13468768,2997.8,2996.2,2.98675298]
[1768937101061,0.13468768,2997.8,2996.3,1.17074424]
[1768937101755,0.13468768,2997.7,2996.2,2.98675298]
[1768937102659,0.13468768,2997.7,2996.2,3.15380298]
[1768937102957,0.13468768,2997.7,2996.6,1.17074424]
[1768937103164,0.13468768,2997.7,2996.3,3.15379298]
[1768937103365,0.13468768,2997.7,2996.3,4.32453722]
[1768937104465,0.13468768,2997.7,2996.3,3.15379298]
[1768937106468,0.13468768,2997.7,2996.3,0.16704]
[1768937107271,0.13468768,2997.7,2996.3,1.33778424]
[1768937108368,0.13468768,2997.7,2996.3,4.32453722]
[1768937108871,0.13468768,2997.7,2996.3,4.15749722]
[1768937109073,0.00370823,2997.9,2996.9,1.17074424]
[1768937109666,0.13468768,2998.5,2997.3,1.17074424]
[1768937110171,0.13468768,2998.5,2997.1,0.167]
[1768937110665,0.13468768,2998.4,2996.9,1.908]
[1768937114476,0.13468768,2997.9,2996.8,2.98675298]
[1768937114674,0.13468768,2997.9,2996.4,4.89575298]
[1768937114969,0.13524032,2997.6,2996.2,2.98675298]
[1768937115169,0.13524032,2997.6,2996.1,9.25283361]
[1768937115373,0.13524032,2997.3,2996.1,1.909]
[1768937115563,1.17074424,2998.1,2995.8,4.19003063]
[1768937115564,0.13524032,2997.0,2995.8,4.19003063]
[1768937115769,0.13524032,2997.0,2995.7,2.98675298]
[1768937115973,0.13524032,2996.7,2995.6,2.98675298]
[1768937116169,1.30598456,2996.5,2995.4,0.00257882]